Workbook

Sheet 1-INFORMACION GENERAL
A1: EVALUACIÓN AMBIENTAL PARA EDIFICACIONES
A4: INFORMACIÓN GENERAL
A5: Nombre del proyecto
A6: VIVIENDA UNIFAMILIAR
A9: Dirección
A10: AV 2 # 29-13 LA RINCONADA. CUCUTA-COLOMBIA
A12: Localización
A13: Pais | B13: Departamento /Provincia
A14: COLOMBIA | B14: Norte de Santander
A16: Uso del suelo | B16: Tipología de uso | C16: Numero de pisos
A17: URBANO | B17: RESIDENCIAL | C17: 2
A20: PROCESO CONSTRUCTIVO
A21: Sistema constructivo | B21: Observaciones
A22: VIGA-COLUMNA
A24: Proceso
A25: MANUFACTURA

Sheet INFO PROYECTO
A1: PAISES | B1: ARGENTINA | C1: BRASIL | D1: CHILE | E1: COLOMBIA | F1: ESPAÑA | G1: MEXICO
A2: ARGENTINA | B2: Ciudad de buenos aires | C2: Acre | D2: Arica y parinacota | E2: Amazonas | F2: A Coruña | G2: Ciudad de mexico
A3: BRASIL | B3: corrientes | C3: Alargoas | D3: Tarapacá | E3: Antioquía | F3: Álava | G3: Aguas calientes
A4: CHILE | B4: Mendoza | C4: Amapá | D4: Antofagasta | E4: Arauca | F4: Albacete | G4: Baja california
A5: COLOMBIA | B5: San luis | C5: Amazonas | D5: Atacama | E5: Atlántico | F5: Alicante | G5: Baja california sur
A6: ESPAÑA | B6: Buenos aires | C6: Bahia | D6: Atacama | E6: Bolívar | F6: Almería | G6: Campeche
A7: MEXICO | B7: entre rios | C7: Ceará | D7: Coquimbo | E7: Boyacá | F7: Asturias | G7: Chiapas
B8: Misiones | C8: Espirito santo | D8: Valparaíso | E8: Caldas | F8: Ávila | G8: Chiguagua
B9: Santa cruz | C9: Goiás | D9: Metropolitana | E9: Caquetá | F9: Badajoz | G9: Coahuila de Zaragoza
B10: Catamarca | C10: Maranhao | D10: O higgins | E10: Casanare | F10: Baleares | G10: Colima
B11: formosa | C11: Mato grosso | D11: Maule | E11: Cauca | F11: Barcelona | G11: Durango
B12: Neuquen | C12: Mato grosso do sul | D12: Bio-Bio | E12: Cesar | F12: Burgos | G12: Guanajuato
B13: Santa fe | C13: Minas Gerais | D13: La araucanía | E13: Chocó | F13: Cáceres | G13: Guerrero
B14: Chaco | C14: Pará | D14: Los Rios | E14: Córdoba | F14: Cádiz | G14: Hidalgo
B15: Jujuy | C15: Paraiba | D15: Los Lagos | E15: Cundinamarca | F15: Cantabria | G15: Jalisco
B16: Rio negro | C16: Paraná | D16: Aysén | E16: Guainía | F16: Castellón | G16: Estado de mexico
B17: Santiago del estero | C17: Pernambuco | D17: Magallanes | E17: Guaviare | F17: Ciudad Real | G17: Michoacan
B18: Chubut | C18: Piauí | E18: Huila | F18: Córdoba | G18: Morelos
B19: la pampa | C19: Rio de janeiro | E19: La Guajira | F19: Cuenca | G19: Nayarit
B20: Salta | C20: Rio grande do norte | E20: Magdalena | F20: Girona | G20: Nuevo leon
B21: Tierra del fuego | C21: Rio Grande Do Sul | E21: Meta | F21: Granada | G21: Oaxaca
B22: Cordoba | C22: Rondonia | E22: Nariño | F22: Guadalajara | G22: Puebla
B23: la rioja | C23: Roraima | E23: Norte de Santander | F23: Gipuzkoa | G23: Queretaro
B24: San juan | C24: Santa catarina | E24: Putumayo | F24: Huelva | G24: Quintana Roo
B25: Tucuman | C25: Sao Paulo | E25: Quindío | F25: Huesca | G25: San luis de potosi
C26: Sergipe | E26: Risaralda | F26: Jaén | G26: Sinaloa
C27: Tocantins | E27: San Andrés y Providencia | F27: La Rioja | G27: Sonora
C28: Distrito Federal | E28: Santander | F28: Las Palmas | G28: Tabasco
E29: Sucre | F29: León | G29: Tamaulipas
E30: Tolima | F30: Lérida | G30: Tlaxcala
E31: Valle del Cauca | F31: Lugo | G31: Veracruz de ignacio de la llave
E32: Vaupés | F32: Madrid | G32: Yucatan
E33: Vichada | F33: Málaga | G33: Zacatecas
F34: Murcia
F35: Navarra
F36: Ourense
F37: Palencia
F38: Pontevedra
F39: Salamanca
F40: Segovia
F41: Sevilla
F42: Soria
F43: Tarragona
F44: Santa Cruz de Tenerife
F45: Teruel
F46: Toledo
F47: Valencia
F48: Valladolid
F49: Vizcaya
F50: Zamora
A56: USO DEL SUELO | C56: TIPOLOGIA | E56: NUMERO PISOS
A57: URBANO | C57: RESIDENCIAL | E57: 1
A58: RURAL | C58: COMERCIAL | E58: 2
C59: OFICINA | E59: 3-5 PISOS
C60: HOTELERO | E60: 6-10 PISOS
C61: RELIGIOSO | E61: 10-20 PISOS
C62: INDUSTRIAL | E62: MAS DE 20
C63: DEPORTIVOS
C64: OTROS
I65: SUBACTIVIDAD
C66: SISTEMA CONSTRUCTIVO | E66: PROCESO | G66: ACTIVIDAD | I66: PRELIMINARES | J66: CIMENTACIÓN | K66: ESTRUCTURA | L66: MUROS | M66: INSTALACIONES | N66: ACABADOS | O66: DEMOLICIONES
C67: SUBTERERANEO | E67: MANUFACTURA | G67: PRELIMINARES | I67: Replanteo | J67: Muro ciclópeo | K67: Columna | L67: Mampostería bloque | M67: Instalaciones eléctricas | N67: Pintura electrostática | O67: Demolición general
C68: VIGA-COLUMNA | E68: TECNIFICADO | G68: CIMENTACIÓN | I68: Descapote manual | J68: Viga Corrida | K68: Vigas | L68: Mampostería adobe | M68: Instalaciones sanitarias | N68: Pintura aceite
C69: ARCO-BOVÉDA | E69: INDUSTRIALIZADO | G69: ESTRUCTURA | I69: Descapote mecánica | J69: Zapata aislada | K69: Pantalla | L69: Mampostería piedra | M69: Instalaciones hidráulicas | N69: Pintura vinilo
C70: OTRAS | G70: MUROS | I70: Excavación manual | J70: Zapata Corrida | K70: Muro ESTRUCTURAL | L70: Madera | M70: Instalaciones Voz y datos | N70: Pañete
C71: NUEVAS TECNOLOGÍAS | G71: INSTALACIONES | I71: Excavación mecánica | J71: Micropilote | K71: Muro de carga | L71: Drywall | M71: Instalaciones mecánicas | N71: Estuco
G72: ACABADO | I72: Entibados | J72: Pilote | K72: Placa contrapiso | L72: Superboard | N72: Drywall
G73: DEMOLICIONES | J73: Placa maciza | K73: Placa entrepiso | L73: Vidrio | N73: Superboard
J74: Placa flotante | K74: Placa aligerada | N74: Cielo raso en madera
J75: Pilote en acero | K75: Placa maciza | N75: Cielo raso fibra
J76: Pilote en madera | K76: Placa lamina colaborante | N76: Cielo raso metálico
J77: Caisson | K77: Placa steel deck | N77: Divisiones en vidrio
K78: Placa fácil | N78: barandas
N79: enchape CERAMICA
N80: enchape porcelanato
N81: Ventanas aluminio
N82: Ventanas mande
N83: Puertas madera
N84: Puerta metálicas
N85: Piso en gres
N86: Piso en mármol
N87: Piso granito
N88: Piso vinilo
N89: Piso Madera
N90: Recubrimiento madera
N91: Recubrimiento mármol
N92: Recubrimiento polímero
N93: Recubrimiento metálico
N94: envolvente especial

Sheet 2-ENTRADAS
A1: ACTIVIDAD | B1: SUBACTIVIDAD | C1: TIPO | D1: MATERIAL | E1: INDICADOR (milipunto/Kilogramo) | F1: KG | G1: milipuntos
A2: PRELIMINARES | B2: Replanteo | C2: CONSTRUCCIÓN | D2: cal (hidratada) | E2: =VLOOKUP(D2,'INFO MATERIALES BASE'!$A$2:$E$92,2,) -> 21 | F2: 10 | G2: =(F2*E2) -> 210
A3: PRELIMINARES | B3: Replanteo | C3: CONSTRUCCIÓN | D3: Gravilla | E3: =VLOOKUP(D3,'INFO MATERIALES BASE'!$A$2:$E$92,2,) -> 0.84 | F3: 50 | G3: 42
A4: PRELIMINARES | B4: Replanteo | C4: CONSTRUCCIÓN | D4: Arena | E4: =VLOOKUP(D4,'INFO MATERIALES BASE'!$A$2:$E$92,2,) -> 0.82 | F4: 50 | G4: 41
A5: PRELIMINARES | B5: Replanteo | C5: CONSTRUCCIÓN | D5: Tableros de madera | E5: =VLOOKUP(D5,'INFO MATERIALES BASE'!$A$2:$E$92,2,) -> 39 | F5: 10 | G5: 390
A6: CIMENTACIÓN | B6: Zapata aislada | C6: METALES_FÉRRICOS | D6: Acero | E6: =VLOOKUP(D6,'INFO MATERIALES BASE'!$A$2:$E$92,2,) -> 86 | F6: 90 | G6: 7740
A7: CIMENTACIÓN | B7: Zapata aislada | C7: EMBALAJE | D7: Papel | E7: =VLOOKUP(D7,'INFO MATERIALES BASE'!$A$2:$E$92,2,) -> 96 | F7: 10 | G7: 960
A8: CIMENTACIÓN | B8: Zapata aislada | C8: CONSTRUCCIÓN | D8: Hormigón sin refuerzo | E8: =VLOOKUP(D8,'INFO MATERIALES BASE'!$A$2:$E$92,2,) -> 3.8 | F8: 1225 | G8: 4655
A9: CIMENTACIÓN | B9: Zapata aislada | C9: CONSTRUCCIÓN | D9: Tableros de madera | E9: =VLOOKUP(D9,'INFO MATERIALES BASE'!$A$2:$E$92,2,) -> 39 | F9: 30 | G9: 1170
A10: ESTRUCTURA | B10: Columna | C10: METALES_FÉRRICOS | D10: Acero | E10: =VLOOKUP(D10,'INFO MATERIALES BASE'!$A$2:$E$92,2,) -> 86 | F10: 200 | G10: 17200
A11: ESTRUCTURA | B11: Columna | C11: CAUCHO | D11: GomasEPDM | E11: =VLOOKUP(D11,'INFO MATERIALES BASE'!$A$2:$E$92,2,) -> 360 | F11: 2 | G11: 720
A12: ESTRUCTURA | B12: Columna | C12: CONSTRUCCIÓN | D12: Hormigón sin refuerzo | E12: =VLOOKUP(D12,'INFO MATERIALES BASE'!$A$2:$E$92,2,) -> 3.8 | F12: 3520 | G12: 13376
A13: ESTRUCTURA | B13: Vigas | C13: METALES_FÉRRICOS | D13: Acero | E13: =VLOOKUP(D13,'INFO MATERIALES BASE'!$A$2:$E$92,2,) -> 86 | F13: 330 | G13: 28380
A14: ESTRUCTURA | B14: Vigas | C14: CONSTRUCCIÓN | D14: Hormigón sin refuerzo | E14: =VLOOKUP(D14,'INFO MATERIALES BASE'!$A$2:$E$92,2,) -> 3.8 | F14: 4200 | G14: =(F14*E14) -> 15960
A15: ESTRUCTURA | B15: Placa aligerada | C15: CONSTRUCCIÓN | D15: Hormigón sin refuerzo | E15: =VLOOKUP(D15,'INFO MATERIALES BASE'!$A$2:$E$92,2,) -> 3.8 | F15: 5000 | G15: =(F15*E15) -> 19000
A16: ESTRUCTURA | B16: Placa aligerada | C16: CONSTRUCCIÓN | D16: Tableros de madera | E16: =VLOOKUP(D16,'INFO MATERIALES BASE'!$A$2:$E$92,2,) -> 39 | F16: 50 | G16: =(F16*E16) -> 1950
A17: ESTRUCTURA | B17: Placa aligerada | C17: METALES_FÉRRICOS | D17: Acero | E17: =VLOOKUP(D17,'INFO MATERIALES BASE'!$A$2:$E$92,2,) -> 86 | F17: 420 | G17: =(F17*E17) -> 36120
A18: MUROS | B18: Mampostería bloque | C18: CONSTRUCCIÓN | D18: Material cerámico | E18: =VLOOKUP(D18,'INFO MATERIALES BASE'!$A$2:$E$92,2,) -> 28 | F18: 1 | G18: =(F18*E18) -> 28
A19: MUROS | B19: Mampostería bloque | C19: CONSTRUCCIÓN | D19: Gravilla | E19: =VLOOKUP(D19,'INFO MATERIALES BASE'!$A$2:$E$92,2,) -> 0.84 | F19: 10 | G19: =(F19*E19) -> 8.4
A20: MUROS | B20: Mampostería bloque | C20: CONSTRUCCIÓN | D20: Arena | E20: =VLOOKUP(D20,'INFO MATERIALES BASE'!$A$2:$E$92,2,) -> 0.82 | F20: 10 | G20: =(F20*E20) -> 8.2
A21: MUROS | B21: Mampostería bloque | C21: CONSTRUCCIÓN | D21: Lana mineral | E21: =VLOOKUP(D21,'INFO MATERIALES BASE'!$A$2:$E$92,2,) -> 61 | F21: 1 | G21: =(F21*E21) -> 61
A22: MUROS | B22: Mampostería bloque | C22: PLÁSTICO | D22: PUR bloques espuma flexible | E22: =VLOOKUP(D22,'INFO MATERIALES BASE'!$A$2:$E$92,2,) -> 480 | F22: 5 | G22: =(F22*E22) -> 2400
A23: INSTALACIONES | B23: Instalaciones eléctricas | C23: PLÁSTICO | D23: PVC rígido | E23: =VLOOKUP(D23,'INFO MATERIALES BASE'!$A$2:$E$92,2,) -> 270 | F23: 12 | G23: 3240
A24: INSTALACIONES | B24: Instalaciones eléctricas | C24: PLÁSTICO | D24: PVC rígido | E24: =VLOOKUP(D24,'INFO MATERIALES BASE'!$A$2:$E$92,2,) -> 270 | F24: 12 | G24: 3240
A25: INSTALACIONES | B25: Instalaciones sanitarias | C25: PLÁSTICO | D25: PVC rígido | E25: =VLOOKUP(D25,'INFO MATERIALES BASE'!$A$2:$E$92,2,) -> 270 | F25: 12 | G25: 3240
A26: INSTALACIONES | B26: Instalaciones sanitarias | C26: CONSTRUCCIÓN | D26: Cal | E26: =VLOOKUP(D26,'INFO MATERIALES BASE'!$A$2:$E$92,2,) -> 28 | F26: 12 | G26: 336
A27: INSTALACIONES | B27: Instalaciones hidráulicas | C27: CONSTRUCCIÓN | D27: Cal | E27: =VLOOKUP(D27,'INFO MATERIALES BASE'!$A$2:$E$92,2,) -> 28 | F27: 12 | G27: 336
A28: INSTALACIONES | B28: Instalaciones hidráulicas | C28: PLÁSTICO | D28: PVC rígido | E28: =VLOOKUP(D28,'INFO MATERIALES BASE'!$A$2:$E$92,2,) -> 270 | F28: 12 | G28: =(F28*E28) -> 3240
A29: ACABADO | B29: Pañete | C29: EMBALAJE | D29: Cartón de embalaje | E29: =VLOOKUP(D29,'INFO MATERIALES BASE'!$A$2:$E$92,2,) -> 69 | F29: 1 | G29: 69
A30: ACABADO | B30: Pañete | C30: CONSTRUCCIÓN | D30: Cemento | E30: =VLOOKUP(D30,'INFO MATERIALES BASE'!$A$2:$E$92,2,) -> 20 | F30: 40 | G30: 800
A31: ACABADO | B31: Pañete | C31: CONSTRUCCIÓN | D31: Gravilla | E31: =VLOOKUP(D31,'INFO MATERIALES BASE'!$A$2:$E$92,2,) -> 0.84 | F31: 20 | G31: 16.8
A32: ACABADO | B32: Pañete | C32: CONSTRUCCIÓN | D32: Arena | E32: =VLOOKUP(D32,'INFO MATERIALES BASE'!$A$2:$E$92,2,) -> 0.82 | F32: 20 | G32: 16.4
A33: ACABADO | B33: Pañete | C33: CONSTRUCCIÓN | D33: Lana mineral | E33: =VLOOKUP(D33,'INFO MATERIALES BASE'!$A$2:$E$92,2,) -> 61 | F33: 5 | G33: 305
A34: ACABADO | B34: Estuco | C34: CONSTRUCCIÓN | D34: Yeso | E34: =VLOOKUP(D34,'INFO MATERIALES BASE'!$A$2:$E$92,2,) -> 9.9 | F34: 30 | G34: =(F34*E34) -> 297
A35: ACABADO | B35: Divisiones en vidrio | C35: CONSTRUCCIÓN | D35: Vidrio templado revestido | E35: =VLOOKUP(D35,'INFO MATERIALES BASE'!$A$2:$E$92,2,) -> 51 | F35: 58 | G35: 2958
A36: ACABADO | B36: Divisiones en vidrio | C36: EMBALAJE | D36: Vidrio (blanco) | E36: =VLOOKUP(D36,'INFO MATERIALES BASE'!$A$2:$E$92,2,) -> 58 | F36: 30 | G36: =(F36*E36) -> 1740
A37: ACABADO | B37: barandas | C37: METALES_FÉRRICOS | D37: Hiero fundido | E37: =VLOOKUP(D37,'INFO MATERIALES BASE'!$A$2:$E$92,2,) -> 240 | F37: 10 | G37: 2400
A38: ACABADO | B38: enchape porcelanato | C38: CONSTRUCCIÓN | D38: Material cerámico | E38: =VLOOKUP(D38,'INFO MATERIALES BASE'!$A$2:$E$92,2,) -> 28 | F38: 12400 | G38: =(F38*E38) -> 347200
A39: ACABADO | B39: Ventanas aluminio | C39: METALES_NO_FÉRRICOS | D39: Aluminio 100% rec | E39: =VLOOKUP(D39,'INFO MATERIALES BASE'!$A$2:$E$92,2,) -> 60 | F39: =(30*8) -> 240 | G39: 14400
A40: ACABADO | B40: Ventanas aluminio | C40: CONSTRUCCIÓN | D40: Vidrio templado revestido | E40: =VLOOKUP(D40,'INFO MATERIALES BASE'!$A$2:$E$92,2,) -> 51 | F40: =(15*8) -> 120 | G40: 6120
A41: ACABADO | B41: Puertas madera | C41: CONSTRUCCIÓN | D41: Madera maciza | E41: =VLOOKUP(D41,'INFO MATERIALES BASE'!$A$2:$E$92,2,) -> 6.6 | F41: 50 | G41: 330
A42: ACABADO | B42: Piso en gres | C42: CONSTRUCCIÓN | D42: Material cerámico | E42: =VLOOKUP(D42,'INFO MATERIALES BASE'!$A$2:$E$92,2,) -> 28 | F42: 1000 | G42: =(F42*E42) -> 28000
A43: ACABADO | B43: Piso en gres | C43: CONSTRUCCIÓN | D43: Arena | E43: =VLOOKUP(D43,'INFO MATERIALES BASE'!$A$2:$E$92,2,) -> 0.82 | F43: 85 | G43: 69.7
A44: ACABADO | B44: envolvente especial | C44: METALES_FÉRRICOS | D44: Acero | E44: =VLOOKUP(D44,'INFO MATERIALES BASE'!$A$2:$E$92,2,) -> 86 | F44: 50 | G44: 4300
A45: ACABADO | B45: envolvente especial | C45: METALES_FÉRRICOS | D45: Acero alta aleación | E45: =VLOOKUP(D45,'INFO MATERIALES BASE'!$A$2:$E$92,2,) -> 910 | F45: 20 | G45: =(F45*E45) -> 18200
A46: ACABADO | B46: envolvente especial | C46: METALES_FÉRRICOS | D46: Hiero fundido | E46: =VLOOKUP(D46,'INFO MATERIALES BASE'!$A$2:$E$92,2,) -> 240 | F46: 20 | G46: =(F46*E46) -> 4800
A47: ACABADO | B47: envolvente especial | C47: METALES_NO_FÉRRICOS | D47: Aluminio 100% rec | E47: =VLOOKUP(D47,'INFO MATERIALES BASE'!$A$2:$E$92,2,) -> 60 | F47: 20 | G47: =(F47*E47) -> 1200
A48: ACABADO | B48: Pintura vinilo | C48: CONSTRUCCIÓN | D48: Barniz alquídico | E48: =VLOOKUP(D48,'INFO MATERIALES BASE'!$A$2:$E$92,2,) -> 520 | F48: 66 | G48: =(F48*E48) -> 34320
F51: TOTAL | G51: =SUM(G2:G50) -> 631593.5
F52: NIVEL | G52: =VLOOKUP(G51,Tabla30[],3) -> ALTO
D54: CAUSA | E54: =VLOOKUP(G52,'INFO D'!C3:D5,2,) -> Periodo de recuperación mayor a 10 años

Sheet 3-PROCESOS
A1: ACTIVIDAD | B1: SUBACTIVIDAD | C1: TIPO | D1: MATERIAL | E1: INDICADOR (milipunto/Kilogramo) | F1: KG/m3 | G1: milipuntos
A2: PRELIMINARES | B2: Replanteo | C2: CONSTRUCCIÓN | D2: Uso del suelo | E2: =VLOOKUP(D2,'INFO MATERIALES BASE'!$A$2:$E$92,2,) -> 45 | F2: 8 | G2: =(F2*E2) -> 360
A3: CIMENTACIÓN | B3: Zapata aislada | C3: CONSTRUCCIÓN | D3: Construcción solida | E3: =VLOOKUP(D3,'INFO MATERIALES BASE'!$A$2:$E$92,2,) -> 1500 | F3: 4 | G3: =(F3*E3) -> 6000
A4: ESTRUCTURA | B4: Columna | C4: CONSTRUCCIÓN | D4: Construcción solida | E4: =VLOOKUP(D4,'INFO MATERIALES BASE'!$A$2:$E$92,2,) -> 1500 | F4: 12 | G4: 18000
A5: ESTRUCTURA | B5: Vigas | C5: CONSTRUCCIÓN | D5: Construcción solida | E5: =VLOOKUP(D5,'INFO MATERIALES BASE'!$A$2:$E$92,2,) -> 1500 | F5: 14 | G5: 21000
A6: ESTRUCTURA | B6: Placa aligerada | C6: CONSTRUCCIÓN | D6: Construcción solida | E6: =VLOOKUP(D6,'INFO MATERIALES BASE'!$A$2:$E$92,2,) -> 1500 | F6: 30 | G6: =(F6*E6) -> 45000
A7: MUROS | B7: Mampostería bloque | C7: PLÁSTICO | D7: PUR bloques espuma flexible | E7: =VLOOKUP(D7,'INFO MATERIALES BASE'!$A$2:$E$92,2,) -> 480 | F7: 3 | G7: =(F7*E7) -> 1440
A8: INSTALACIONES | B8: Instalaciones eléctricas | C8: PLÁSTICO | D8: PET | E8: =VLOOKUP(D8,'INFO MATERIALES BASE'!$A$2:$E$92,2,) -> 380 | F8: 2 | G8: =(F8*E8) -> 760
A9: INSTALACIONES | B9: Instalaciones eléctricas | C9: PLÁSTICO | D9: LDPE | E9: =VLOOKUP(D9,'INFO MATERIALES BASE'!$A$2:$E$92,2,) -> 360 | F9: 2 | G9: 720
A10: INSTALACIONES | B10: Instalaciones sanitarias | C10: PLÁSTICO | D10: LDPE | E10: =VLOOKUP(D10,'INFO MATERIALES BASE'!$A$2:$E$92,2,) -> 360 | F10: 2 | G10: 720
A11: INSTALACIONES | B11: Instalaciones hidráulicas | C11: PLÁSTICO | D11: LDPE | E11: =VLOOKUP(D11,'INFO MATERIALES BASE'!$A$2:$E$92,2,) -> 360 | F11: 2 | G11: 720
A12: ACABADO | B12: Pañete | C12: CONSTRUCCIÓN | D12: Hormigón sin refuerzo | E12: =VLOOKUP(D12,'INFO MATERIALES BASE'!$A$2:$E$92,2,) -> 3.8 | F12: 10 | G12: 38
A13: ACABADO | B13: Estuco | C13: CONSTRUCCIÓN | D13: Hiero fundido | E13: =VLOOKUP(D13,'INFO MATERIALES BASE'!$A$2:$E$92,2,) -> 240 | F13: 10 | G13: 2400
A14: ACABADO | B14: Divisiones en vidrio | C14: CONSTRUCCIÓN | D14: Construcción en metal | E14: =VLOOKUP(D14,'INFO MATERIALES BASE'!$A$2:$E$92,2,) -> 4300 | F14: 1 | G14: 4300
A15: ACABADO | B15: barandas | C15: CONSTRUCCIÓN | D15: Barniz alquídico | E15: =VLOOKUP(D15,'INFO MATERIALES BASE'!$A$2:$E$92,2,) -> 520 | F15: 66 | G15: 34320
A16: ACABADO | B16: Ventanas aluminio | C16: CONSTRUCCIÓN | D16: Construcción en metal | E16: =VLOOKUP(D16,'INFO MATERIALES BASE'!$A$2:$E$92,2,) -> 4300 | F16: 15 | G16: =(F16*E16) -> 64500
A17: ACABADO | B17: envolvente especial | C17: CONSTRUCCIÓN | D17: Construcción en metal | E17: =VLOOKUP(D17,'INFO MATERIALES BASE'!$A$2:$E$92,2,) -> 4300 | F17: 15 | G17: 64500
A18: ACABADO | B18: Pintura vinilo | C18: CONSTRUCCIÓN | D18: Yeso | E18: =VLOOKUP(D18,'INFO MATERIALES BASE'!$A$2:$E$92,2,) -> 9.9 | F18: =+'2-ENTRADAS'!F48 -> 66 | G18: 653.4
F21: TOTAL | G21: =SUM(G2:G20) -> 265431.4
F22: NIVEL | G22: =VLOOKUP(G21,Tabla30[],3) -> ALTO
D24: CAUSA | E24: =VLOOKUP(G22,'INFO D'!C3:D5,2,) -> Periodo de recuperación mayor a 10 años

Sheet 4-SALIDAS
A1: ACTIVIDAD | B1: SUB-ACTIVIDAD | C1: TIPO | D1: MATERIAL | E1: INDICADOR (milipunto/Kilogramo) | F1: FACTOR % DESPERDICIO | G1: KG | H1: milipuntos
A2: PRELIMINARES | B2: Replanteo | C2: CONSTRUCCIÓN | D2: Uso del suelo | E2: =VLOOKUP(D2,'INFO MATERIALES BASE'!$A$2:$E$92,2,) -> 45 | F2: 0.1 | G2: =+Tabla832[[#This Row],[KG/m3]] -> 8 | H2: =(F2*E2*Tabla840[[#This Row],[KG]]) -> 36
A3: PRELIMINARES | B3: Replanteo | C3: CONSTRUCCIÓN | D3: Construcción solida | E3: =VLOOKUP(D3,'INFO MATERIALES BASE'!$A$2:$E$92,2,) -> 1500 | F3: 0.15 | G3: =+G2 -> 8 | H3: =(F3*E3*Tabla840[[#This Row],[KG]]) -> 1800
A4: CIMENTACIÓN | B4: Zapata aislada | C4: CONSTRUCCIÓN | D4: Construcción en metal | E4: =VLOOKUP(D4,'INFO MATERIALES BASE'!$A$2:$E$92,2,) -> 4300 | F4: 0.15 | G4: =+'3-PROCESOS'!F3 -> 4 | H4: =(F4*E4*Tabla840[[#This Row],[KG]]) -> 2580
A5: ESTRUCTURA | B5: Columna | C5: CONSTRUCCIÓN | D5: Construcción solida | E5: =VLOOKUP(D5,'INFO MATERIALES BASE'!$A$2:$E$92,2,) -> 1500 | F5: 0.15 | G5: =+'3-PROCESOS'!F4 -> 12 | H5: =(F5*E5*Tabla840[[#This Row],[KG]]) -> 2700
A6: ESTRUCTURA | B6: Vigas | C6: CONSTRUCCIÓN | D6: Construcción solida | E6: =VLOOKUP(D6,'INFO MATERIALES BASE'!$A$2:$E$92,2,) -> 1500 | F6: 0.15 | G6: =+'3-PROCESOS'!F5 -> 14 | H6: =(F6*E6*Tabla840[[#This Row],[KG]]) -> 3150
A7: ESTRUCTURA | B7: Placa aligerada | C7: CONSTRUCCIÓN | D7: Construcción solida | E7: =VLOOKUP(D7,'INFO MATERIALES BASE'!$A$2:$E$92,2,) -> 1500 | F7: 0.15 | G7: =+'3-PROCESOS'!F6 -> 30 | H7: =(F7*E7*Tabla840[[#This Row],[KG]]) -> 6750
A8: MUROS | B8: Mampostería bloque | C8: CONSTRUCCIÓN | D8: Construcción solida | E8: =VLOOKUP(D8,'INFO MATERIALES BASE'!$A$2:$E$92,2,) -> 1500 | F8: 0.1 | G8: =+'3-PROCESOS'!F7 -> 3 | H8: =(F8*E8*Tabla840[[#This Row],[KG]]) -> 450
A9: INSTALACIONES | B9: Instalaciones eléctricas | C9: CONSTRUCCIÓN | D9: Construcción solida | E9: =VLOOKUP(D9,'INFO MATERIALES BASE'!$A$2:$E$92,2,) -> 1500 | F9: 0.1 | G9: =+Tabla832[[#This Row],[KG/m3]] -> 2 | H9: =(F9*E9*Tabla840[[#This Row],[KG]]) -> 300
A10: INSTALACIONES | B10: Instalaciones sanitarias | C10: CONSTRUCCIÓN | D10: Construcción solida | E10: =VLOOKUP(D10,'INFO MATERIALES BASE'!$A$2:$E$92,2,) -> 1500 | F10: 0.1 | G10: =+Tabla832[[#This Row],[KG/m3]] -> 2 | H10: =(F10*E10*Tabla840[[#This Row],[KG]]) -> 300
A11: INSTALACIONES | B11: Instalaciones sanitarias | C11: CONSTRUCCIÓN | D11: Construcción solida | E11: =VLOOKUP(D11,'INFO MATERIALES BASE'!$A$2:$E$92,2,) -> 1500 | F11: 0.1 | G11: =+Tabla832[[#This Row],[KG/m3]] -> 2 | H11: =(F11*E11*Tabla840[[#This Row],[KG]]) -> 300
A12: ACABADO | B12: Pañete | C12: CONSTRUCCIÓN | D12: Construcción solida | E12: =VLOOKUP(D12,'INFO MATERIALES BASE'!$A$2:$E$92,2,) -> 1500 | F12: 0.14 | G12: 10 | H12: =(F12*E12*Tabla840[[#This Row],[KG]]) -> 2100
A13: ACABADO | B13: Pintura vinilo | C13: CONSTRUCCIÓN | D13: Yeso | E13: =VLOOKUP(D13,'INFO MATERIALES BASE'!$A$2:$E$92,2,) -> 9.9 | F13: 0.14 | G13: =+'2-ENTRADAS'!F48 -> 66 | H13: =(F13*E13*Tabla840[[#This Row],[KG]]) -> 91.476
A14: ACABADO | B14: envolvente especial | C14: CONSTRUCCIÓN | D14: Construcción en metal | E14: =VLOOKUP(D14,'INFO MATERIALES BASE'!$A$2:$E$92,2,) -> 4300 | F14: 0.14 | G14: 15 | H14: =(F14*E14*Tabla840[[#This Row],[KG]]) -> 9030
F17: TOTAL | H17: =SUM(H2:H16) -> 29587.476
G18: NIVEL | H18: =VLOOKUP(H17,Tabla30[],3) -> MEDIO
D20: CAUSA | E20: =VLOOKUP(H18,'INFO D'!C3:D5,2,) -> Media afectación, el ecosistema tarde 1-10 años en recuperarse

Sheet 5-RESIDUOS
A1: ACTIVIDAD | B1: SUBACTIVIDAD | C1: TIPO | D1: MATERIAL | E1: INDICADOR (milipunto/Kilogramo) | F1: kg | G1: milipuntos
A2: PRELIMINARES | B2: Replanteo | C2: RECICLADO | D2: reciclado de PAPEL | E2: =VLOOKUP(D2,'INFO MATERIALES BASE'!$A$2:$E$92,2,) -> -1.2 | F2: =(Tabla832[[#This Row],[KG/m3]]*0.1) -> 0.8 | G2: =(F2*E2) -> -0.96
A3: CIMENTACIÓN | B3: Zapata aislada | C3: RECICLADO | D3: Reciclado de metales de hierro | E3: =VLOOKUP(D3,'INFO MATERIALES BASE'!$A$2:$E$92,2,) -> -70 | F3: =('4-SALIDAS'!G4*'4-SALIDAS'!F4) -> 0.6 | G3: =(F3*E3) -> -42
A4: ESTRUCTURA | B4: Columna | C4: RECICLADO | D4: Reciclado de metales de hierro | E4: =VLOOKUP(D4,'INFO MATERIALES BASE'!$A$2:$E$92,2,) -> -70 | F4: =('4-SALIDAS'!G5*'4-SALIDAS'!F5) -> 1.8 | G4: -126
A5: ESTRUCTURA | B5: Vigas | C5: RECICLADO | D5: Reciclado de metales de hierro | E5: =VLOOKUP(D5,'INFO MATERIALES BASE'!$A$2:$E$92,2,) -> -70 | F5: =('4-SALIDAS'!G6*'4-SALIDAS'!F6) -> 2.1 | G5: -147
A6: ESTRUCTURA | B6: Placa aligerada | C6: RECICLADO | D6: Reciclado de metales de hierro | E6: =VLOOKUP(D6,'INFO MATERIALES BASE'!$A$2:$E$92,2,) -> -70 | F6: =('4-SALIDAS'!G7*'4-SALIDAS'!F7) -> 4.5 | G6: =(F6*E6) -> -315
A7: MUROS | B7: Mampostería bloque | C7: RECICLADO | D7: Incineracioncarton | E7: =VLOOKUP(D7,'INFO MATERIALES BASE'!$A$2:$E$92,2,) -> -12 | F7: =('4-SALIDAS'!G8*'4-SALIDAS'!F8) -> 0.3 | G7: =(F7*E7) -> -3.6
A8: INSTALACIONES | B8: Instalaciones eléctricas | C8: RECICLADO | D8: Reciclado de PVC | E8: =VLOOKUP(D8,'INFO MATERIALES BASE'!$A$2:$E$92,2,) -> -170 | F8: =('4-SALIDAS'!G9*'4-SALIDAS'!F9) -> 0.2 | G8: =(F8*E8) -> -34
A9: INSTALACIONES | B9: Instalaciones sanitarias | C9: RECICLADO | D9: Reciclado de PVC | E9: =VLOOKUP(D9,'INFO MATERIALES BASE'!$A$2:$E$92,2,) -> -170 | F9: 0.2 | G9: -34
A10: INSTALACIONES | B10: Instalaciones hidráulicas | C10: RECICLADO | D10: Reciclado de PVC | E10: =VLOOKUP(D10,'INFO MATERIALES BASE'!$A$2:$E$92,2,) -> -170 | F10: 0.2 | G10: -34
A11: ACABADO | B11: Pañete | C11: RECICLADO | D11: Reciclado de Pe | E11: =VLOOKUP(D11,'INFO MATERIALES BASE'!$A$2:$E$92,2,) -> -240 | F11: =('4-SALIDAS'!G14*'4-SALIDAS'!F14) -> 2.1 | G11: -504
A12: ACABADO | B12: Estuco | C12: RECICLADO | D12: Reciclado de Pe | E12: =VLOOKUP(D12,'INFO MATERIALES BASE'!$A$2:$E$92,2,) -> -240 | F12: 1.4 | G12: -336
A13: ACABADO | B13: Divisiones en vidrio | C13: RECICLADO | D13: Reciclado de vidrio | E13: =VLOOKUP(D13,'INFO MATERIALES BASE'!$A$2:$E$92,2,) -> -15 | F13: 0.01 | G13: -0.15
A14: ACABADO | B14: barandas | C14: RECICLADO | D14: Reciclado de aluminio | E14: =VLOOKUP(D14,'INFO MATERIALES BASE'!$A$2:$E$92,2,) -> -720 | F14: =(10*10%) -> 1 | G14: -720
A15: ACABADO | B15: Ventanas aluminio | C15: RECICLADO | D15: Reciclado de aluminio | E15: =VLOOKUP(D15,'INFO MATERIALES BASE'!$A$2:$E$92,2,) -> -720 | F15: 5 | G15: -3600
A16: ACABADO | B16: envolvente especial | C16: RECICLADO | D16: Incineración aluminio | E16: =VLOOKUP(D16,'INFO MATERIALES BASE'!$A$2:$E$92,2,) -> -110 | F16: =+'4-SALIDAS'!G14*'4-SALIDAS'!F14 -> 2.1 | G16: =(F16*E16) -> -231
A17: ACABADO | B17: envolvente especial | C17: RECICLADO | D17: Incineración PE | E17: =VLOOKUP(D17,'INFO MATERIALES BASE'!$A$2:$E$92,2,) -> -19 | F17: =+F16 -> 2.1 | G17: =(F17*E17) -> -39.9
A18: ACABADO | B18: envolvente especial | C18: RECICLADO | D18: Reciclado de aluminio | E18: =VLOOKUP(D18,'INFO MATERIALES BASE'!$A$2:$E$92,2,) -> -720 | F18: =+F17 -> 2.1 | G18: =(F18*E18) -> -1512
A19: ACABADO | B19: Pintura vinilo | C19: RECICLADO | D19: Incineracioncarton | E19: =VLOOKUP(D19,'INFO MATERIALES BASE'!$A$2:$E$92,2,) -> -12 | F19: =+'4-SALIDAS'!G13 -> 66 | G19: =(F19*E19) -> -792
F22: TOTAL | G22: =SUM(G2:G21) -> -8471.61
D25: CAUSA | E25: =VLOOKUP(G23,'INFO D'!C3:D5,2,) -> 

Sheet 6-TRANSPORTED
A1: ACTIVIDAD | B1: SUBACTIVIDAD | C1: TIPO | D1: MATERIAL | E1: INDICADOR (milipunto/Kilogramo) | F1: kg | G1: FACTOR % DESPERDICIO | H1: milipuntos
A2: CIMENTACIÓN | B2: Zapata aislada | C2: TRANSPORTE | D2: Camión 16 t | E2: =VLOOKUP(D2,'INFO MATERIALES BASE'!$A$2:$E$92,2,) -> 34 | F2: =+'4-SALIDAS'!G4 -> 4 | G2: 0.15 | H2: =(G2*E2*Tabla8404142[[#This Row],[kg]]) -> 20.4
A3: ESTRUCTURA | B3: Columna | C3: TRANSPORTE | D3: Camión 16 t | E3: =VLOOKUP(D3,'INFO MATERIALES BASE'!$A$2:$E$92,2,) -> 34 | F3: =+'4-SALIDAS'!G5 -> 12 | G3: 0.15 | H3: =(G3*E3*Tabla8404142[[#This Row],[kg]]) -> 61.2
A4: ESTRUCTURA | B4: Vigas | C4: TRANSPORTE | D4: Camión 40 t | E4: =VLOOKUP(D4,'INFO MATERIALES BASE'!$A$2:$E$92,2,) -> 15 | F4: =+'4-SALIDAS'!G6 -> 14 | G4: 0.15 | H4: =(G4*E4*Tabla8404142[[#This Row],[kg]]) -> 31.5
A5: ESTRUCTURA | B5: Placa aligerada | C5: TRANSPORTE | D5: Camión 28 t | E5: =VLOOKUP(D5,'INFO MATERIALES BASE'!$A$2:$E$92,2,) -> 22 | F5: =+'4-SALIDAS'!G7 -> 30 | G5: 0.15 | H5: =(G5*E5*Tabla8404142[[#This Row],[kg]]) -> 99
A6: MUROS | B6: Mampostería bloque | C6: TRANSPORTE | D6: Camión 16 t | E6: =VLOOKUP(D6,'INFO MATERIALES BASE'!$A$2:$E$92,2,) -> 34 | F6: =+'4-SALIDAS'!G8 -> 3 | G6: 0.15 | H6: =(G6*E6*Tabla8404142[[#This Row],[kg]]) -> 15.3
A7: INSTALACIONES | B7: Instalaciones eléctricas | C7: TRANSPORTE | D7: Camión 16 t | E7: =VLOOKUP(D7,'INFO MATERIALES BASE'!$A$2:$E$92,2,) -> 34 | F7: =+'4-SALIDAS'!G9 -> 2 | G7: 0.15 | H7: =(G7*E7*Tabla8404142[[#This Row],[kg]]) -> 10.2
A8: INSTALACIONES | B8: Instalaciones sanitarias | C8: TRANSPORTE | D8: Camión 16 t | E8: =VLOOKUP(D8,'INFO MATERIALES BASE'!$A$2:$E$92,2,) -> 34 | F8: =+'4-SALIDAS'!G10 -> 2 | G8: 0.15 | H8: =(G8*E8*Tabla8404142[[#This Row],[kg]]) -> 10.2
A9: INSTALACIONES | B9: Instalaciones hidráulicas | C9: TRANSPORTE | D9: Camión 16 t | E9: =VLOOKUP(D9,'INFO MATERIALES BASE'!$A$2:$E$92,2,) -> 34 | F9: =+'4-SALIDAS'!G11 -> 2 | G9: 0.15 | H9: =(G9*E9*Tabla8404142[[#This Row],[kg]]) -> 10.2
A10: ACABADO | B10: Pañete | C10: TRANSPORTE | D10: Camión 16 t | E10: =VLOOKUP(D10,'INFO MATERIALES BASE'!$A$2:$E$92,2,) -> 34 | F10: =+'4-SALIDAS'!G14 -> 15 | G10: 0.15 | H10: =(G10*E10*Tabla8404142[[#This Row],[kg]]) -> 76.5
A11: ACABADO | B11: envolvente especial | C11: TRANSPORTE | D11: Camión 28 t | E11: =VLOOKUP(D11,'INFO MATERIALES BASE'!$A$2:$E$92,2,) -> 22 | F11: =+Tabla840[[#This Row],[KG]] -> 2 | G11: 0.15 | H11: =(G11*E11*Tabla8404142[[#This Row],[kg]]) -> 6.6
A12: ACABADO | B12: Pintura vinilo | C12: TRANSPORTE | D12: Camión 28 t | E12: =VLOOKUP(D12,'INFO MATERIALES BASE'!$A$2:$E$92,2,) -> 22 | F12: =+'4-SALIDAS'!G13 -> 66 | G12: 0.15 | H12: =(G12*E12*Tabla8404142[[#This Row],[kg]]) -> 217.8
G15: TOTAL | H15: =SUM(H2:H14) -> 558.9
G16: NIVEL | H16: =VLOOKUP(H15,Tabla30[],3) -> BAJO
D18: CAUSA | E18: =VLOOKUP(H16,'INFO D'!C3:D5,2,) -> Baja afectación con recuperación en un 1 año

Sheet INFO MATERIALES BASE
A1: Material | B1: Indicador | C1: Descripción | D1: cód | E1: grupo
A2: Hiero fundido | B2: 240 | C2: Hierro fundido con >2% de carbón | D2: F1 | E2: METALES_FÉRRICOS
A3: Acero de convertidores | B3: 94 | C3: Bloque de material con acero primario | D3: F2 | E3: METALES_FÉRRICOS
A4: Acero de arco eléctrico | B4: 24 | C4: Bloque de material con chatarra | D4: F3 | E4: METALES_FÉRRICOS
A5: Acero | B5: 86 | C5: Bloque de material 80% primario 20% chatarra | D5: F4 | E5: METALES_FÉRRICOS
A6: Acero alta aleación | B6: 910 | C6: Bloque de material con 71% acero primario y otros componentes | D6: F5 | E6: METALES_FÉRRICOS
A7: Acero baja aleación | B7: 110 | C7: Bloque de material con 93% de acero primario 5% de restos 1% materiales de aleación | D7: F6 | E7: METALES_FÉRRICOS
A8: Aluminio 100% rec | B8: 60 | C8: Bloques de material con materiales secundarios | D8: NF1 | E8: METALES_NO_FÉRRICOS
A9: Aluminio 0% rec | B9: 780 | C9: Bloques de material con materiales primarios | D9: NF2 | E9: METALES_NO_FÉRRICOS
A10: Cromo | B10: 970 | C10: Bloques de material con materiales primarios | D10: NF3 | E10: METALES_NO_FÉRRICOS
A11: Cobre | B11: 1400 | C11: Bloques de material con materiales primarios | D11: NF4 | E11: METALES_NO_FÉRRICOS
A12: Plomo | B12: 640 | C12: Bloque de material que contiene 50% de plomo secundario | D12: NF5 | E12: METALES_NO_FÉRRICOS
A13: Niquel enriquecido | B13: 5200 | C13: Bloques de material con materiales primarios | D13: NF6 | E13: METALES_NO_FÉRRICOS
A14: Zinc | B14: 3200 | C14: Bloques de material con materiales primarios | D14: NF7 | E14: METALES_NO_FÉRRICOS
A15: Curvado-aluminio | B15: 4.7e-05 | C15: Una hoja de 1mm de espesor de 1 m de ancho curvada 90 | D15: M1 | E15: METALES
A16: Curvado-acero | B16: 8e-05 | C16: Una hoja de 1mm de espesor de 1 m de ancho curvada 90 | D16: M2 | E16: METALES
A17: Soldadura Fuerte (con plata, cobre o latón) | B17: 4000 | C17: por kg de cobre soldadura, incluyendo material de cobre soldado (45% plata, 27% de cobre, 25% de latón | D17: M3 | E17: METALES
A18: Laminado en frio de rollos | B18: 18 | C18: Reducción de 1 mm cada bandeja de 1m2 | D18: M4 | E18: METALES
A19: Laminado | B19: 30 | C19: por Kg producido de laminas fuera del material del bloque | D19: M5 | E19: METALES
A20: Zincado de bandas | B20: 4300 | C20: por m2 de 20-45 um de espesor | D20: M6 | E20: METALES
A21: Galvanizado en caliente | B21: 3300 | C21: por m2. espesor 100um | D21: M7 | E21: METALES
A22: Baño de zinc (conversión um) | B22: 49 | C22: por m2 | D22: M8 | E22: METALES
A23: ABS | B23: 400 | D23: P1 | E23: PLÁSTICO
A24: HDPE | B24: 330 | D24: P2 | E24: PLÁSTICO
A25: LDPE | B25: 360 | D25: P3 | E25: PLÁSTICO
A26: PET | B26: 380 | D26: P4 | E26: PLÁSTICO
A27: PS (GPPS) | B27: 370 | C27: Uso general | D27: P5 | E27: PLÁSTICO
A28: PUR bloques espuma flexible | B28: 480 | C28: para muebles, camas, ropa | D28: P6 | E28: PLÁSTICO
A29: PUR espuma dura | B29: 420 | D29: P7 | E29: PLÁSTICO
A30: PVC rígido | B30: 270 | C30: PVC rígido CON 10% de plastificantes | D30: P8 | E30: PLÁSTICO
A31: PVC Flexible | B31: 240 | C31: PVC Flexible con 50% de plastificantes | E31: PLÁSTICO
A32: GomasEPDM | B32: 360 | C32: Vulcanizado con 44% de carbono | D32: C1 | E32: CAUCHO
A33: Cartón de embalaje | B33: 69 | D33: E1 | E33: EMBALAJE
A34: Papel | B34: 96 | D34: E2 | E34: EMBALAJE
A35: Vidrio (marrón) | B35: 50 | D35: E3 | E35: EMBALAJE
A36: Vidrio (verde) | B36: 51 | D36: E4 | E36: EMBALAJE
A37: Vidrio (blanco) | B37: 58 | D37: E5 | E37: EMBALAJE
A38: Amoniaco | B38: 160 | C38: NH3 | D38: Q1 | E38: QUÍMICOS
A39: Argón | B39: 7.8 | C39: Gas inerte empelado en bombillas, soldadura metales | D39: Q2 | E39: QUÍMICOS
A40: Productos químicos inorgánicos | B40: 53 | C40: Valor medio de producción de químicos inorgánicos | D40: Q3 | E40: QUÍMICOS
A41: Productos químicos orgánicos | B41: 99 | C41: Valor medio de producción de químicos orgánicos | D41: Q4 | E41: QUÍMICOS
A42: Gasolina | B42: 210 | D42: Q5 | E42: QUÍMICOS
A43: Diesel | B43: 180 | D43: Q6 | E43: QUÍMICOS
A44: H2 | B44: 830 | C44: Gas hidrogeno , empelado en proceso de reducción | D44: Q7 | E44: QUÍMICOS
A45: H2SO4 | B45: 22 | C45: Acido sulfúrico para limpieza | D45: Q8 | E45: QUÍMICOS
A46: HCI | B46: 39 | C46: Acido hidro clorhídrico. Empleado para procesar metálicas y limpieza | D46: Q9 | E46: QUÍMICOS
A47: O2 | B47: 12 | C47: Oxigeno | D47: Q10 | E47: QUÍMICOS
A48: Silicato | B48: 60 | C48: Fabricación de gel ,detergentes y limpieza metal | D48: Q11 | E48: QUÍMICOS
A49: Urea | B49: 130 | C49: Fertilizantes | D49: Q12 | E49: QUÍMICOS
A50: Zeolita | B50: 160 | C50: Utilizada en proceso reabsorción y en detergentes | D50: Q13 | E50: QUÍMICOS
A51: Barniz alquídico | B51: 520 | C51: Producción y emisiones durante el barnizado, conteniendo 55% de disolventes | D51: C1 | E51: CONSTRUCCIÓN
A52: Cemento | B52: 20 | C52: cemento | D52: C2 | E52: CONSTRUCCIÓN
A53: Material cerámico | B53: 28 | C53: Ladrillos etc. | D53: C3 | E53: CONSTRUCCIÓN
A54: Hormigón sin refuerzo | B54: 3.8 | C54: Hormigón con densidad de 2200 kg/m3 | D54: C4 | E54: CONSTRUCCIÓN
A55: Vidrio templado revestido | B55: 51 | C55: Para ventanas, cubierta de estaño, plata y niquel (77g/m2) | D55: C5 | E55: CONSTRUCCIÓN
A56: Vidrio templado no revestido | B56: 49 | C56: para ventanas | D56: C6 | E56: CONSTRUCCIÓN
A57: Yeso | B57: 9.9 | C57: Selenita para rellenos | D57: C7 | E57: CONSTRUCCIÓN
A58: Gravilla | B58: 0.84 | C58: Extracción y transporte | D58: C8 | E58: CONSTRUCCIÓN
A59: Cal | B59: 28 | C59: Ca0. empelado para producir cementos | D59: C9 | E59: CONSTRUCCIÓN
A60: cal (hidratada) | B60: 21 | C60: CA(OH)2 empleado para fabricar mortero | D60: C10 | E60: CONSTRUCCIÓN
A61: Lana mineral | B61: 61 | C61: para aislamientos | D61: C11 | E61: CONSTRUCCIÓN
A62: Construcción solida | B62: 1500 | C62: Estimación para un edificio por m3 de volumen (bienes de equipo) | D62: C12 | E62: CONSTRUCCIÓN
A63: Construcción en metal | B63: 4300 | C63: Estimación para un edificio por m3 de volumen (bienes de equipo) | D63: C13 | E63: CONSTRUCCIÓN
A64: Arena | B64: 0.82 | C64: Extracción y transporte | D64: C14 | E64: CONSTRUCCIÓN
A65: Tableros de madera | B65: 39 | C65: Madera europea (Criterios FSC) | D65: C15 | E65: CONSTRUCCIÓN
A66: Madera maciza | B66: 6.6 | C66: Madera europea (Criterios FSC) | D66: C16 | E66: CONSTRUCCIÓN
A67: Uso del suelo | B67: 45 | C67: Ocupación como suelo urbano por m2 al año | D67: C17 | E67: CONSTRUCCIÓN
A68: Camión de reparto <3,5 t | B68: 140 | C68: Transporte por carretera con 30% de carga, 33% de gasolina sin plomo , 38% gasolina con plomo, 29% de Diesel | D68: T1 | E68: TRANSPORTE
A69: Camión 16 t | B69: 34 | C69: Transporte por carretera con 40% de carga | D69: T2 | E69: TRANSPORTE
A70: Camión 28 t | B70: 22 | C70: Transporte por carretera con 40% de carga | D70: T3 | E70: TRANSPORTE
A71: Camión 28 t volumen | B71: 8 | C71: Transporte por carretera por m3km . Cuando el factor determinante es el volumen y no la carga | D71: T4 | E71: TRANSPORTE
A72: Camión 40 t | B72: 15 | C72: Transporte por carretera con 50% carga | D72: T5 | E72: TRANSPORTE
A73: Transporte ferrocarril | B73: 3.9 | C73: Transporte tren | D73: T6 | E73: TRANSPORTE
A74: Buque sistema fluvial | B74: 5 | C74: Transporte marítimo con 65% de carga | D74: T7 | E74: TRANSPORTE
A75: Transporte aéreo medio | B75: 78 | C75: Transporte aéreo con carga 78% | D75: T8 | E75: TRANSPORTE
A76: Transporte aérea continental | B76: 120 | C76: Transporte aéreo con carga 62% | D76: T9 | E76: TRANSPORTE
A77: Transporte aéreo intercontinental | B77: 80 | C77: Transporte aéreo con carga 78% | D77: T10 | E77: TRANSPORTE
A78: Incineración PE | B78: -19 | C78: Este indicador puede utilizarse para HDPE y LDPE | D78: R1 | E78: RECICLADO
A79: Incineración PP | B79: -13 | D79: R2 | E79: RECICLADO
A80: Incineración PUR | B80: 2.8 | C80: Este indicador puede utilizarse todos Los tipos de PUR | D80: R3 | E80: RECICLADO
A81: Incineración PVC | B81: 37 | C81: Liberación de energía relativamente baja | D81: R4 | E81: RECICLADO
A82: Incineración papel | B82: -12 | C82: Gran liberación de energía, emisiones CO2 no contempladas | D82: R5 | E82: RECICLADO
A83: Incineracioncarton | B83: -12 | C83: Gran liberación de energía, emisiones CO2 no contempladas | D83: R6 | E83: RECICLADO
A84: Incineración acero | B84: -32 | C84: 40% de separación magnética para reciclado, eliminando el hierro crudo | D84: R7 | E84: RECICLADO
A85: Incineración aluminio | B85: -110 | C85: 15% de separación magnética para reciclado, eliminando aluminio primario | D85: R8 | E85: RECICLADO
A86: Incineración vidrio | B86: 5.1 | C86: Se trata de un material casi inerte | D86: R9 | E86: RECICLADO
A87: Reciclado de Pe | B87: -240 | D87: R10 | E87: RECICLADO
A88: Reciclado de PVC | B88: -170 | D88: R11 | E88: RECICLADO
A89: reciclado de PAPEL | B89: -1.2 | D89: R12 | E89: RECICLADO
A90: Reciclado de vidrio | B90: -15 | D90: R13 | E90: RECICLADO
A91: Reciclado de aluminio | B91: -720 | D91: R14 | E91: RECICLADO
A92: Reciclado de metales de hierro | B92: -70 | D92: R15 | E92: RECICLADO

Sheet INFO MATERIALES
A1: INDICADORES
A3: Metales férricos (en milipuntos por KG)
A4: METALES FÉRRICOS
A5: Material | B5: Indicador | C5: Descripción | D5: código
A6: Hiero fundido | B6: 240 | C6: Hierro fundido con >2% de carbón | D6: F1
A7: Acero de convertidores | B7: 94 | C7: Bloque de material con acero primario | D7: F2
A8: Acero de arco eléctrico | B8: 24 | C8: Bloque de material con chatarra | D8: F3
A9: Acero | B9: 86 | C9: Bloque de material 80% primario 20% chatarra | D9: F4
A10: Acero alta aleación | B10: 910 | C10: Bloque de material con 71% acero primario y otros componentes | D10: F5
A11: Acero baja aleación | B11: 110 | C11: Bloque de material con 93% de acero primario 5% de restos 1% materiales de aleación | D11: F6
A14: Metales NO férricos (en milipuntos por KG)
A15: Metales NO férricos
A16: Material | B16: Indicador | C16: Descripción | D16: código
A17: Aluminio 100% rec | B17: 60 | C17: Bloques de material con materiales secundarios | D17: NF1
A18: Aluminio 0% rec | B18: 780 | C18: Bloques de material con materiales primarios | D18: NF2
A19: Cromo | B19: 970 | C19: Bloques de material con materiales primarios | D19: NF3
A20: Cobre | B20: 1400 | C20: Bloques de material con materiales primarios | D20: NF4
A21: Plomo | B21: 640 | C21: Bloque de material que contiene 50% de plomo secundario | D21: NF5
A22: Niquel enriquecido | B22: 5200 | C22: Bloques de material con materiales primarios | D22: NF6
A23: Zinc | B23: 3200 | C23: Bloques de material con materiales primarios | D23: NF7
A26: Procesado metales(en milipuntos )
A27: METALES
A28: Material | B28: Indicador | C28: Descripción | D28: código
A29: Curvado-aluminio | B29: 4.7e-05 | C29: Una hoja de 1mm de espesor de 1 m de ancho curvada 90 | D29: M1
A30: Curvado-acero | B30: 8e-05 | C30: Una hoja de 1mm de espesor de 1 m de ancho curvada 90 | D30: M2
A31: Soldadura Fuerte (con plata, cobre o latón) | B31: 4000 | C31: por kg de cobre soldadura, incluyendo material de cobre soldado (45% plata, 27% de cobre, 25% de latón | D31: M3
A32: Laminado en frio de rollos | B32: 18 | C32: Reducción de 1 mm cada bandeja de 1m2 | D32: M4
A33: Laminado | B33: 30 | C33: por Kg producido de laminas fuera del material del bloque | D33: M5
A34: Zincado de bandas | B34: 4300 | C34: por m2 de 20-45 um de espesor | D34: M6
A35: Galvanizado en caliente | B35: 3300 | C35: por m2. espesor 100um | D35: M7
A36: Baño de zinc (conversión um) | B36: 49 | C36: por m2 | D36: M8
A39: Producción de plástico granulado (en milipuntos por KG )
A40: PLÁSTICO
A41: Material | B41: Indicador | C41: Descripción | D41: código
A42: ABS | B42: 400 | D42: P1
A43: HDPE | B43: 330 | D43: P2
A44: LDPE | B44: 360 | D44: P3
A45: PET | B45: 380 | D45: P4
A46: PS (GPPS) | B46: 370 | C46: Uso general | D46: P5
A47: PUR bloques espuma flexible | B47: 480 | C47: para muebles, camas, ropa | D47: P6
A48: PUR espuma dura | B48: 420 | D48: P7
A49: PVC rígido | B49: 270 | C49: PVC rígido CON 10% de plastificantes | D49: P8
A50: PVC Flexible | B50: 240 | C50: PVC Flexible con 50% de plastificantes | D50: P9
A53: Producción de caucho (en milipuntos por KG )
A54: CAUCHO
A55: Material | B55: Indicador | C55: Descripción | D55: código
A56: GomasEPDM | B56: 360 | C56: Vulcanizado con 44% de carbono | D56: C1
A59: Producción de embalaje (en milipuntos por KG )
A60: EMBALAJE
A61: Material | B61: Indicador | C61: Descripción | D61: código
A62: Cartón de embalaje | B62: 69 | D62: E1
A63: Papel | B63: 96 | D63: E2
A64: Vidrio (marrón) | B64: 50 | D64: E3
A65: Vidrio (verde) | B65: 51 | D65: E4
A66: Vidrio (blanco) | B66: 58 | D66: E5
A69: Producción de químicos (en milipuntos por KG )
A70: QUÍMICOS
A71: Material | B71: Indicador | C71: Descripción | D71: código
A72: Amoniaco | B72: 160 | C72: NH3 | D72: Q1
A73: Argón | B73: 7.8 | C73: Gas inerte empelado en bombillas, soldadura metales | D73: Q2
A74: Productos químicos inorgánicos | B74: 53 | C74: Valor medio de producción de químicos inorgánicos | D74: Q3
A75: Productos químicos orgánicos | B75: 99 | C75: Valor medio de producción de químicos orgánicos | D75: Q4
A76: Gasolina | B76: 210 | D76: Q5
A77: Diesel | B77: 180 | D77: Q6
A78: H2 | B78: 830 | C78: Gas hidrogeno , empelado en proceso de reducción | D78: Q7
A79: H2SO4 | B79: 22 | C79: Acido sulfúrico para limpieza | D79: Q8
A80: HCI | B80: 39 | C80: Acido hidro clorhídrico. Empelado para procesar metálicas y limpieza | D80: Q9
A81: O2 | B81: 12 | C81: Oxigeno | D81: Q10
A82: Silicato | B82: 60 | C82: Fabricación de gel ,detergentes y limpieza metal | D82: Q11
A83: Urea | B83: 130 | C83: Fertilizantes | D83: Q12
A84: Zeolita | B84: 160 | C84: Utilizada en proceso reabsorción y en detergentes | D84: Q13
A87: Producción de construcción (en mili puntos por KG )
A88: CONSTRUCCIÓN
A89: Material | B89: Indicador | C89: Descripción | D89: código
A90: Barniz alquídico | B90: 520 | C90: Producción y emisiones durante el barnizado, conteniendo 55% de disolventes | D90: C1
A91: Cemento | B91: 20 | C91: cemento | D91: C2
A92: Material cerámico | B92: 28 | C92: Ladrillos etc. | D92: C3
A93: Hormigón sin refuerzo | B93: 3.8 | C93: Hormigón con densidad de 2200 kg/m3 | D93: C4
A94: Vidrio templado revestido | B94: 51 | C94: Para ventanas, cubierta de estaño, plata y niquel (77g/m2) | D94: C5
A95: Vidrio templado no revestido | B95: 49 | C95: para ventanas | D95: C6
A96: Yeso | B96: 9.9 | C96: Selenita para rellenos | D96: C7
A97: Gravilla | B97: 0.84 | C97: Extracción y transporte | D97: C8
A98: Cal | B98: 28 | C98: Ca0. empelado para producir cementos | D98: C9
A99: cal (hidratada) | B99: 21 | C99: CA(OH)2 empleado para fabricar mortero | D99: C10
A100: Lana mineral | B100: 61 | C100: para aislamientos | D100: C11
A101: Construcción solida | B101: 1500 | C101: Estimación para un edificio por m3 de volumen (bienes de equipo) | D101: C12
A102: Construcción en metal | B102: 4300 | C102: Estimación para un edificio por m3 de volumen (bienes de equipo) | D102: C13
A103: Arena | B103: 0.82 | C103: Extracción y transporte | D103: C14
A104: Tableros de madera | B104: 39 | C104: Madera europea (Criterios FSC) | D104: C15
A105: Madera maciza | B105: 6.6 | C105: Madera europea (Criterios FSC) | D105: C16
A106: Uso del suelo | B106: 45 | C106: Ocupación como suelo urbano por m2 al año | D106: C17
A109: Producción de transporte (en milipuntos por TKM )
A110: TRANSPORTE
A111: Material | B111: Indicador | C111: Descripción | D111: código
A112: Camión de reparto <3,5 t | B112: 140 | C112: Transporte por carretera con 30% de carga, 33% de gasolina sin plomo , 38% gasolina con plomo, 29% de Diesel | D112: T1
A113: Camión 16 t | B113: 34 | C113: Transporte por carretera con 40% de carga | D113: T2
A114: Camión 28 t | B114: 22 | C114: Transporte por carretera con 40% de carga | D114: T3
A115: Camión 28 t volumen | B115: 8 | C115: Transporte por carretera por m3km . Cuando el factor determinante es el volumen y no la carga | D115: T4
A116: Camión 40 t | B116: 15 | C116: Transporte por carretera con 50% carga | D116: T5
A117: Transporte ferrocarril | B117: 3.9 | C117: Transporte tren | D117: T6
A118: Buque sistema fluvial | B118: 5 | C118: Transporte marítimo con 65% de carga | D118: T7
A119: Transporte aéreo medio | B119: 78 | C119: Transporte aéreo con carga 78% | D119: T8
A120: Transporte aérea continental | B120: 120 | C120: Transporte aéreo con carga 62% | D120: T9
A121: Transporte aéreo intercontinental | B121: 80 | C121: Transporte aéreo con carga 78% | D121: T10
A124: Producción de reciclado (en milipuntos por kg)
A125: RECICLADO
A126: Material | B126: Indicador | C126: Descripción | D126: código
A127: Incineración PE | B127: -19 | C127: Este indicador puede utilizarse para HDPE y LDPE | D127: R1
A128: Incineración PP | B128: -13 | D128: R2
A129: Incineración PUR | B129: 2.8 | C129: Este indicador puede utilizarse todos Los tipos de PUR | D129: R3
A130: Incineración PVC | B130: 37 | C130: Liberación de energía relativamente baja | D130: R4
A131: Incineración papel | B131: -12 | C131: Gran liberación de energía, emisiones CO2 no contempladas | D131: R5
A132: Incineracioncarton | B132: -12 | C132: Gran liberación de energía, emisiones CO2 no contempladas | D132: R6
A133: Incineración acero | B133: -32 | C133: 40% de separación magnética para reciclado, eliminando el hierro crudo | D133: R7
A134: Incineración aluminio | B134: -110 | C134: 15% de separación magnética para reciclado, eliminando aluminio primario | D134: R8
A135: Incineración vidrio | B135: 5.1 | C135: Se trata de un material casi inerte | D135: R9
A136: Reciclado de Pe | B136: -240 | D136: R10
A137: Reciclado de PVC | B137: -170 | D137: R11
A138: reciclado de PAPEL | B138: -1.2 | D138: R12
A139: Reciclado de vidrio | B139: -15 | D139: R13
A140: Reciclado de aluminio | B140: -720 | D140: R14
A141: Reciclado de metales de hierro | B141: -70 | D141: R15
A143: METALES_FÉRRICOS
A144: METALES_NO_FÉRRICOS
A145: METALES
A146: PLÁSTICO
A147: CAUCHO
A148: EMBALAJE
A149: QUÍMICOS
A150: CONSTRUCCIÓN
A151: TRANSPORTE
A152: RECICLADO

Sheet INFO D
A1: MILIPUNTOS MINIMO | B1: MILIPUNTOS MAXIMO | C1: NIVEL DE IMPACTO | D1: CAUSA
A2: 0 | B2: 0 | C2: NULO | D2: No afectación al medio ambiente
A3: 0.1 | B3: 10000 | C3: BAJO | D3: Baja afectación con recuperación en un 1 año
A4: 10001 | B4: 50000 | C4: MEDIO | D4: Media afectación, el ecosistema tarde 1-10 años en recuperarse
A5: 50002 | B5: 100000 | C5: ALTO | D5: Periodo de recuperación mayor a 10 años

Sheet PROYECTO CASA
A1: Actividad | B1: Subactividad | C1: Unidad | D1: cantidad | E1: Kg | F1: total
A2: PRELIMINARES | B2: Replanteo | C2: M2 | D2: 213 | F2: =(Tabla32[[#This Row],[Kg]]*Tabla32[[#This Row],[cantidad]]) -> 0
A3: PRELIMINARES | B3: Descapote manual | C3: M2 | D3: 120 | F3: =(Tabla32[[#This Row],[Kg]]*Tabla32[[#This Row],[cantidad]]) -> 0
A4: CIMENTACIÓN | B4: Zapata aislada | C4: M3 | D4: 5 | F4: =(Tabla32[[#This Row],[Kg]]*Tabla32[[#This Row],[cantidad]]) -> 0
A5: CIMENTACIÓN | B5: Placa maciza | C5: M2 | D5: 120 | F5: =(Tabla32[[#This Row],[Kg]]*Tabla32[[#This Row],[cantidad]]) -> 0
A6: ESTRUCTURA | B6: Columna | C6: M3 | D6: 9 | F6: =(Tabla32[[#This Row],[Kg]]*Tabla32[[#This Row],[cantidad]]) -> 0
A7: ESTRUCTURA | B7: Placa aligerada | C7: M3 | D7: 48 | F7: =(Tabla32[[#This Row],[Kg]]*Tabla32[[#This Row],[cantidad]]) -> 0
A8: ESTRUCTURA | B8: Pantalla | C8: M3 | D8: 3.6 | F8: =(Tabla32[[#This Row],[Kg]]*Tabla32[[#This Row],[cantidad]]) -> 0
A9: MUROS | B9: Mampostería bloque | C9: M2 | D9: 190 | F9: =(Tabla32[[#This Row],[Kg]]*Tabla32[[#This Row],[cantidad]]) -> 0
A10: MUROS | B10: Drywall | C10: M2 | D10: 20 | F10: =(Tabla32[[#This Row],[Kg]]*Tabla32[[#This Row],[cantidad]]) -> 0
A11: INSTALACIONES | B11: Instalaciones eléctricas | C11: ML | D11: 80 | F11: =(Tabla32[[#This Row],[Kg]]*Tabla32[[#This Row],[cantidad]]) -> 0
A12: INSTALACIONES | B12: Instalaciones sanitarias | C12: ML | D12: 40 | F12: =(Tabla32[[#This Row],[Kg]]*Tabla32[[#This Row],[cantidad]]) -> 0
A13: INSTALACIONES | B13: Instalaciones hidráulicas | C13: ML | D13: 40 | F13: =(Tabla32[[#This Row],[Kg]]*Tabla32[[#This Row],[cantidad]]) -> 0
A14: ACABADO | B14: Pañete | C14: M2 | D14: =(190*2) -> 380 | F14: =(Tabla32[[#This Row],[Kg]]*Tabla32[[#This Row],[cantidad]]) -> 0
A15: ACABADO | B15: Estuco | C15: M2 | D15: =(190*2) -> 380 | F15: =(Tabla32[[#This Row],[Kg]]*Tabla32[[#This Row],[cantidad]]) -> 0
A16: ACABADO | B16: Divisiones en vidrio | C16: M2 | D16: 15 | F16: =(Tabla32[[#This Row],[Kg]]*Tabla32[[#This Row],[cantidad]]) -> 0
A17: ACABADO | B17: barandas | C17: ML | D17: 20 | F17: =(Tabla32[[#This Row],[Kg]]*Tabla32[[#This Row],[cantidad]]) -> 0
A18: ACABADO | B18: enchape porcelanato | C18: M2 | D18: 50 | F18: =(Tabla32[[#This Row],[Kg]]*Tabla32[[#This Row],[cantidad]]) -> 0
A19: ACABADO | B19: Ventanas aluminio | C19: M2 | D19: 50 | F19: =(Tabla32[[#This Row],[Kg]]*Tabla32[[#This Row],[cantidad]]) -> 0
A20: ACABADO | B20: Puertas madera | C20: UND | D20: 11 | F20: =(Tabla32[[#This Row],[Kg]]*Tabla32[[#This Row],[cantidad]]) -> 0
A21: ACABADO | B21: Piso en gres | C21: M2 | D21: 20 | F21: =(Tabla32[[#This Row],[Kg]]*Tabla32[[#This Row],[cantidad]]) -> 0
A22: ACABADO | B22: Recubrimiento mármol | C22: M2 | D22: 80 | F22: =(Tabla32[[#This Row],[Kg]]*Tabla32[[#This Row],[cantidad]]) -> 0
A23: ACABADO | B23: envolvente especial | C23: M2 | D23: 10 | F23: =(Tabla32[[#This Row],[Kg]]*Tabla32[[#This Row],[cantidad]]) -> 0
A24: ACABADO | B24: Pintura vinilo | C24: M2 | D24: 190 | F24: =(Tabla32[[#This Row],[Kg]]*Tabla32[[#This Row],[cantidad]]) -> 0
A25: DEMOLICIONES | B25: Demolición general | C25: M3 | D25: 5 | E25: 10 | F25: =(Tabla32[[#This Row],[Kg]]*Tabla32[[#This Row],[cantidad]]) -> 50
A29: ENTRADAS | B29: PROCESOS | C29: SALIDAS | D29: RESIDUOS | E29: TRANSPORTE
A30: =+GETPIVOTDATA("milipuntos",DASHBOARD!$A$23) -> 631593.5 | B30: =+GETPIVOTDATA("milipuntos",DASHBOARD!$B$23) -> 265431.4 | C30: =+GETPIVOTDATA("milipuntos",DASHBOARD!$C$23) -> 29587.476 | D30: =+GETPIVOTDATA("milipuntos",DASHBOARD!$D$23) -> -8471.61 | E30: =+GETPIVOTDATA("milipuntos",DASHBOARD!$E$23) -> 558.9
A33: 1- ENTRADAS | B33: 2-PROCESOS | C33: 3- SALIDAS | D33: 4-RESIDUOS | E33: 5-TRANSPORTE | G33: SE DEBE ACTUALIZAR
A34: 631593.5 | B34: 265431.4 | C34: 29587.476 | D34: -8471.61 | E34: 47.85

Sheet DINAMXACTIV (ACTUALIZAR
A1: ENTRADAS
A3: Etiquetas de fila | B3: Suma de milipuntos
A4: ACABADO | B4: 467541.9
A5: barandas | B5: 2400
A6: Divisiones en vidrio | B6: 4698
A7: enchape porcelanato | B7: 347200
A8: envolvente especial | B8: 28500
A9: Estuco | B9: 297
A10: Pañete | B10: 1207.2
A11: Pintura vinilo | B11: 34320
A12: Piso en gres | B12: 28069.7
A13: Puertas madera | B13: 330
A14: Ventanas aluminio | B14: 20520
A15: CIMENTACIÓN | B15: 14525
A16: Zapata aislada | B16: 14525
A17: ESTRUCTURA | B17: 132706
A18: Columna | B18: 31296
A19: Placa aligerada | B19: 57070
A20: Vigas | B20: 44340
A21: INSTALACIONES | B21: 13632
A22: Instalaciones eléctricas | B22: 6480
A23: Instalaciones hidráulicas | B23: 3576
A24: Instalaciones sanitarias | B24: 3576
A25: MUROS | B25: 2505.6
A26: Mampostería bloque | B26: 2505.6
A27: PRELIMINARES | B27: 683
A28: Replanteo | B28: 683
A29: Total general | B29: 631593.5
A36: SALIDAS
A38: Etiquetas de fila | B38: Suma de milipuntos
A39: ACABADO | B39: 11221.476
A40: envolvente especial | B40: 9030
A41: Pañete | B41: 2100
A42: Pintura vinilo | B42: 91.476
A43: CIMENTACIÓN | B43: 2580
A44: Zapata aislada | B44: 2580
A45: ESTRUCTURA | B45: 12600
A46: Columna | B46: 2700
A47: Placa aligerada | B47: 6750
A48: Vigas | B48: 3150
A49: INSTALACIONES | B49: 900
A50: Instalaciones eléctricas | B50: 300
A51: Instalaciones sanitarias | B51: 600
A52: MUROS | B52: 450
A53: Mampostería bloque | B53: 450
A54: PRELIMINARES | B54: 1836
A55: Replanteo | B55: 1836
A56: Total general | B56: 29587.476
A71: RESIDUOS
A73: Etiquetas de fila | B73: Suma de milipuntos
A74: ACABADO | B74: -7735.05
A75: barandas | B75: -720
A76: Divisiones en vidrio | B76: -0.15
A77: envolvente especial | B77: -1782.9
A78: Estuco | B78: -336
A79: Pañete | B79: -504
A80: Pintura vinilo | B80: -792
A81: Ventanas aluminio | B81: -3600
A82: CIMENTACIÓN | B82: -42
A83: Zapata aislada | B83: -42
A84: ESTRUCTURA | B84: -588
A85: Columna | B85: -126
A86: Placa aligerada | B86: -315
A87: Vigas | B87: -147
A88: INSTALACIONES | B88: -102
A89: Instalaciones eléctricas | B89: -34
A90: Instalaciones hidráulicas | B90: -34
A91: Instalaciones sanitarias | B91: -34
A92: MUROS | B92: -3.6
A93: Mampostería bloque | B93: -3.6
A94: PRELIMINARES | B94: -0.96
A95: Replanteo | B95: -0.96
A96: Total general | B96: -8471.61
A104: PROCESO
A106: Etiquetas de fila | B106: Suma de milipuntos
A107: ACABADO | B107: 170711.4
A108: barandas | B108: 34320
A109: Divisiones en vidrio | B109: 4300
A110: envolvente especial | B110: 64500
A111: Estuco | B111: 2400
A112: Pañete | B112: 38
A113: Pintura vinilo | B113: 653.4
A114: Ventanas aluminio | B114: 64500
A115: CIMENTACIÓN | B115: 6000
A116: Zapata aislada | B116: 6000
A117: ESTRUCTURA | B117: 84000
A118: Columna | B118: 18000 | E118: |
A119: Placa aligerada | B119: 45000
A120: Vigas | B120: 21000
A121: INSTALACIONES | B121: 2920
A122: Instalaciones eléctricas | B122: 1480
A123: Instalaciones hidráulicas | B123: 720
A124: Instalaciones sanitarias | B124: 720
A125: MUROS | B125: 1440
A126: Mampostería bloque | B126: 1440
A127: PRELIMINARES | B127: 360
A128: Replanteo | B128: 360
A129: Total general | B129: 265431.4
A138: TRANSPORTE
A140: Etiquetas de fila | B140: Suma de milipuntos
A141: ACABADO | B141: 300.9
A142: envolvente especial | B142: 6.6
A143: Pañete | B143: 76.5
A144: Pintura vinilo | B144: 217.8
A145: CIMENTACIÓN | B145: 20.4
A146: Zapata aislada | B146: 20.4
A147: ESTRUCTURA | B147: 191.7
A148: Columna | B148: 61.2
A149: Placa aligerada | B149: 99
A150: Vigas | B150: 31.5
A151: INSTALACIONES | B151: 30.6
A152: Instalaciones eléctricas | B152: 10.2
A153: Instalaciones hidráulicas | B153: 10.2
A154: Instalaciones sanitarias | B154: 10.2
A155: MUROS | B155: 15.3
A156: Mampostería bloque | B156: 15.3
A157: Total general | B157: 558.9

Sheet DINAMICA PROCESO (ACTUALIZAR)
A1: ENTRADAS | B1: 1
A3: Etiquetas de fila | B3: Suma de milipuntos
A4: ACABADO | B4: 467541.9
A5: CIMENTACIÓN | B5: 14525
A6: ESTRUCTURA | B6: 132706
A7: INSTALACIONES | B7: 13632
A8: MUROS | B8: 2505.6
A9: PRELIMINARES | B9: 683
A10: Total general | B10: 631593.5
A18: 3
A19: SALIDAS
A21: Etiquetas de fila | B21: Suma de milipuntos
A22: ACABADO | B22: 11221.476
A23: CIMENTACIÓN | B23: 2580
A24: ESTRUCTURA | B24: 12600
A25: INSTALACIONES | B25: 900
A26: MUROS | B26: 450
A27: PRELIMINARES | B27: 1836
A28: Total general | B28: 29587.476
A32: 2
A33: PROCESO
A35: Etiquetas de fila | B35: Suma de milipuntos
A36: ACABADO | B36: 170711.4
A37: CIMENTACIÓN | B37: 6000
A38: ESTRUCTURA | B38: 84000
A39: INSTALACIONES | B39: 2920
A40: MUROS | B40: 1440
A41: PRELIMINARES | B41: 360
A42: Total general | B42: 265431.4
A46: 4
A47: RESIDUOS
A49: Etiquetas de fila | B49: Suma de milipuntos
A50: ACABADO | B50: -7735.05
A51: CIMENTACIÓN | B51: -42
A52: ESTRUCTURA | B52: -588
A53: INSTALACIONES | B53: -102
A54: MUROS | B54: -3.6
A55: PRELIMINARES | B55: -0.96
A56: Total general | B56: -8471.61
A61: 5
A62: TRANSPORTE
A64: Etiquetas de fila | B64: Suma de milipuntos
A65: ACABADO | B65: 300.9
A66: CIMENTACIÓN | B66: 20.4
A67: ESTRUCTURA | B67: 191.7
A68: INSTALACIONES | B68: 30.6
A69: MUROS | B69: 15.3
A70: Total general | B70: 558.9

Sheet DASHBOARD
A1: EVALUACIÓN AMBIENTAL PARA EDIFICACIONES
A4: Nombre del proyecto
A5: =+'1-INFORMACION GENERAL'!A6:C6 -> VIVIENDA UNIFAMILIAR
A8: Dirección
A9: =+'1-INFORMACION GENERAL'!A10:C10 -> AV 2 # 29-13 LA RINCONADA. CUCUTA-COLOMBIA
A11: Localización | E11: PROCESO CONSTRUCTIVO
A12: Pais | B12: Departamento /Provincia | E12: Sistema constructivo
A13: =+P -> COLOMBIA | B13: =+'1-INFORMACION GENERAL'!B14 -> Norte de Santander | E13: =+'1-INFORMACION GENERAL'!A22 -> VIGA-COLUMNA
A15: Uso del suelo | B15: Tipología uso | C15: Numero de pisos | E15: Proceso
A16: =+USO -> URBANO | B16: =+TIPO -> RESIDENCIAL | C16: =+NUM -> 2 | E16: =+'1-INFORMACION GENERAL'!A25 -> MANUFACTURA
A19: PROYECTO VIVIENDA UNIFAMILIAR
C20: AREA:213M2
A23: ENTRADAS | B23: PROCESOS | C23: SALIDAS | D23: RESIDUOS | E23: TRANSPORTE | G23: TOTAL MILIPUNTOS
A24: 631593.5 | B24: 265431.4 | C24: 29587.476 | D24: -8471.61 | E24: 558.9 | G24: =SUM(A24:F24) -> 918699.666
D27: =VLOOKUP(G24,Tabla30[],3) -> ALTO
B28: NIVEL DE IMPACTO
